bitfinex/quotes_SOLUSD_20240716
["timestamp","ask_amount","ask_price","bid_price","bid_amount"]
[1721172703882,6.46385857,161.91,161.8,1.23586905]
[1721172704080,15.4378,161.94,161.8,1.23586905]
[1721172704297,6.1773,161.89,161.84,6.1788]
[1721172704509,6.1773,161.89,161.84,7.41433261]
[1721172704906,6.1773,161.89,161.84,6.1788]
[1721172705090,18.62,161.9,161.8,16.68633277]
[1721172705297,18.62,161.9,161.8,15.4508]
[1721172705684,6.1782,161.86,161.81,6.1797]
[1721172706099,15.4432,161.89,161.8,15.4508]
[1721172706309,6.179,161.84,161.8,15.4508]
[1721172706518,6.1789,161.84,161.8,15.4508]
[1721172706688,6.1789,161.84,161.8,16.68667654]
[1721172706887,6.1789,161.84,161.8,15.4508]
[1721172707096,6.1789,161.84,161.8,16.6866758]
[1721172707509,6.1794,161.83,161.78,6.1811]
[1721172707716,6.1794,161.83,161.78,1.23602297]
[1721172707921,6.179,161.84,161.79,6.1808]
[1721172708219,6.1792,161.84,161.8,1.23602002]
[1721172708586,6.1792,161.84,161.79,7.41667019]
[1721172708813,6.1793,161.83,161.79,7.41667019]
[1721172709116,6.1793,161.83,161.78,6.1811]
[1721172709809,6.1787,161.85,161.79,1.23605982]
[1721172710110,6.186,161.97,161.75,30.911]
[1721172710111,6.2075,161.9,161.75,30.911]
[1721172710293,20.0,161.89,161.81,15.4495]
[1721172710497,6.1786,161.85,161.81,15.4495]
[1721172710699,6.1782,161.86,161.81,21.6295]
[1721172711619,6.1786,161.85,161.81,15.4495]
[1721172711925,6.1789,161.84,161.8,6.1803]
[1721172712125,6.1793,161.83,161.78,21.6337]
[1721172712297,15.446,161.86,161.75,46.3665]
[1721172712499,0.17,161.87,161.75,30.911]
[1721172712800,6.1793,161.84,161.79,6.1805]
[1721172713013,6.1794,161.83,161.77,21.6345]
[1721172713226,6.1794,161.83,161.73,6.1987]
[1721172713227,34.069,161.83,161.73,6.1987]
[1721172713448,0.17,161.82,161.72,15.7656]
[1721172713716,6.1813,161.78,161.72,6.1832]
[1721172714295,18.62,161.78,161.69,0.8223138]
[1721172714492,0.17,161.77,161.69,0.8223138]
[1721172714915,6.1827,161.75,161.69,7.0069138]
[1721172715213,18.62,161.78,161.69,7.0069138]
[1721172715214,6.1828,161.74,161.69,7.0069138]
[1721172715413,34.074,161.78,161.69,0.8223138]
[1721172715592,6.1828,161.74,161.69,7.0069138]
[1721172716110,6.1832,161.73,161.69,0.8223138]
[1721172716492,15.4558,161.76,161.69,0.8223138]
[1721172716718,18.96,161.75,161.69,0.8223138]
[1721172717218,6.1839,161.71,161.69,0.8223138]
[1721172717511,6.1838,161.72,161.69,0.8223138]
[1721172718698,6.1832,161.73,161.69,0.8223138]
[1721172718898,18.62,161.76,161.69,0.8223138]
[1721172719123,6.1842,161.71,161.69,0.8223138]
[1721172719624,6.1842,161.7,161.69,0.8223138]
[1721172720308,6.1839,161.71,161.69,0.8223138]
[1721172720704,6.1836,161.72,161.69,0.8223138]
[1721172720913,6.1839,161.71,161.69,0.8223138]
[1721172721113,6.1835,161.72,161.69,0.8223138]
[1721172721440,6.1842,161.7,161.69,0.8223138]
[1721172724460,44.9742,161.7,161.69,0.8223138]
[1721172724732,45.1442,161.7,161.69,0.8223138]
[1721172725231,26.5242,161.7,161.69,0.8223138]
[1721172725602,26.1842,161.7,161.69,0.8223138]
[1721172726204,26.3542,161.7,161.69,0.8223138]
[1721172726433,45.1442,161.7,161.69,0.8223138]
[1721172726811,44.9742,161.7,161.69,0.8223138]
[1721172727132,45.1442,161.7,161.69,0.8223138]
[1721172727833,45.1442,161.7,161.69,1.38e-05]
[1721172728340,51.61192837,161.7,161.69,1.38e-05]
[1721172732724,12.99192837,161.7,161.69,1.38e-05]
[1721172732943,6.1842,161.7,161.69,1.38e-05]
[1721172733256,12.65456594,161.7,161.69,1.38e-05]
[1721172733432,6.1842,161.7,161.69,1.38e-05]
[1721172734427,28.18561113,161.75,161.69,1.38e-05]
[1721172734627,6.47001113,161.75,161.69,1.38e-05]
[1721172734845,6.1842,161.7,161.69,1.38e-05]
[1721172735647,24.8042,161.7,161.69,1.38e-05]
[1721172735848,25.1442,161.7,161.69,1.38e-05]
[1721172736024,31.2865,161.7,161.69,1.38e-05]
[1721172736231,51.2865,161.7,161.69,1.38e-05]
[1721172738346,26.4823,161.7,161.69,1.38e-05]
[1721172738544,26.5242,161.7,161.69,1.38e-05]
[1721172739255,26.1842,161.7,161.69,1.38e-05]
[1721172739567,44.8042,161.7,161.69,1.38e-05]
[1721172740429,45.1442,161.7,161.69,1.38e-05]
[1721172741670,78.2842,161.7,161.69,1.38e-05]
[1721172744346,6.1842,161.7,161.69,1.38e-05]
[1721172744748,33.14,161.76,161.69,1.38e-05]
[1721172744965,6.1841,161.71,161.69,1.38e-05]
[1721172745136,6.1835,161.73,161.69,1.38e-05]
[1721172745338,6.4692927,161.77,161.69,1.38e-05]
[1721172745534,6.182,161.76,161.72,15.4582]
[1721172746329,6.1816,161.77,161.72,22.87811067]
[1721172747033,20.0,161.76,161.72,22.87811067]
[1721172747234,20.0,161.76,161.69,1.38e-05]
[1721172747235,6.46728329,161.82,161.81,6.18]
[1721172747439,18.62,161.92,161.76,1.2358763]
[1721172747736,18.62,161.89,161.75,30.91]
[1721172748061,18.62,161.89,161.73,41.7808]
[1721172748258,25.0782,161.89,161.75,15.455]
[1721172748458,6.1793,161.83,161.77,6.1815]
[1721172748658,6.1789,161.84,161.78,6.181]
[1721172748875,6.1789,161.84,161.79,6.1808]
[1721172749049,6.1784,161.86,161.73,41.7808]
[1721172749230,6.1786,161.85,161.8,21.6312]
[1721172749435,25.0782,161.89,161.8,21.6312]
[1721172749651,6.1787,161.85,161.8,15.4508]
[1721172749857,0.17,161.86,161.76,15.4544]
[1721172750061,6.1787,161.85,161.79,6.1807]
[1721172750245,0.17,161.86,161.8,6.1802]
[1721172750445,0.17,161.86,161.8,6.1803]
[1721172750749,0.17,161.86,161.81,6.18]
[1721172750750,6.1782,161.86,161.81,6.18]
[1721172750959,6.1787,161.85,161.79,21.6321]
[1721172751161,6.178,161.87,161.79,15.4517]
[1721172751340,20.0,161.86,161.81,6.18]
[1721172751534,20.0,161.86,161.79,15.4517]
[1721172751535,26.1782,161.86,161.8,6.1804]
[1721172751740,26.1782,161.86,161.81,6.18]
[1721172751935,12.84976566,161.93,161.82,1.2358941]
[1721172752135,6.178,161.87,161.78,21.2356415]
[1721172752459,6.1778,161.87,161.82,6.1793]
[1721172752664,28.28926566,161.93,161.83,15.448]
[1721172752861,21.8257,161.93,161.83,15.448]
[1721172753042,6.177,161.89,161.84,6.1788]
[1721172753634,6.1766,161.9,161.85,6.1784]
[1721172753870,6.1771,161.89,161.84,6.1789]
[1721172754256,6.3862,161.93,161.85,6.1785]
[1721172754548,6.177,161.89,161.84,6.1788]
[1721172754760,6.1765,161.91,161.85,6.1785]
[1721172754959,6.1769,161.9,161.84,1.23555777]
[1721172755262,6.46188256,161.96,161.84,23.81695777]
[1721172755462,6.175,161.95,161.9,6.1765]
[1721172755675,6.1744,161.96,161.91,6.1761]
[1721172755884,6.1746,161.96,161.92,15.439]
[1721172756168,6.1748,161.95,161.9,6.1765]
[1721172756741,6.1742,161.97,161.92,15.4396]
[1721172756946,15.4314,162.01,161.85,64.0318]
[1721172757147,6.1748,161.95,161.9,6.1762]
[1721172757352,6.45936989,162.02,161.89,21.6195]
[1721172757353,6.1752,161.94,161.89,21.6195]
[1721172757873,6.1746,161.96,161.9,6.1764]
[1721172758181,6.1748,161.95,161.9,6.1764]
[1721172758776,6.1752,161.94,161.9,6.1766]
[1721172758935,6.1752,161.94,161.89,21.6195]
[1721172759141,15.4335,161.99,161.91,6.1762]
[1721172759381,6.1749,161.95,161.9,6.1763]
[1721172759664,20.17,161.98,161.86,15.445]
[1721172759665,34.0558,161.97,161.86,15.445]
[1721172759870,34.0558,161.97,161.85,30.8918]
[1721172759871,20.17,161.96,161.85,30.8918]
[1721172760040,20.0,161.96,161.88,15.443]
[1721172760240,6.1765,161.91,161.86,6.1778]
[1721172760441,6.1759,161.92,161.87,6.1777]
[1721172760744,0.17,161.95,161.88,15.4433]
[1721172760961,0.17,161.95,161.85,46.3378]
[1721172761284,6.1766,161.9,161.86,6.1781]
[1721172761443,18.62,161.94,161.82,15.4489]
[1721172761766,6.1775,161.88,161.84,6.1789]
[1721172762001,6.1777,161.87,161.82,15.4489]
[1721172762274,6.1777,161.87,161.82,21.6283]
[1721172762470,18.62,161.89,161.79,30.7746]
[1721172762648,0.17,161.88,161.79,30.7746]
[1721172763062,6.1786,161.85,161.8,6.1804]
[1721172763274,6.1786,161.85,161.81,6.18]
[1721172763580,0.17,161.88,161.79,15.3229]
[1721172763742,6.1778,161.87,161.83,15.4473]
[1721172764472,0.17,161.88,161.8,15.4506]
[1721172764674,6.1789,161.85,161.8,21.6309]
[1721172766059,6.1778,161.87,161.82,6.1795]
[1721172766257,6.1781,161.86,161.82,6.1795]
[1721172766774,54.0612,161.91,161.83,6.179]
[1721172767072,54.0612,161.91,161.82,15.4484]
[1721172767073,6.1783,161.86,161.82,21.628]
[1721172767274,6.1779,161.87,161.82,21.628]
[1721172767480,6.1773,161.89,161.84,6.1786]
[1721172767658,6.1772,161.89,161.84,21.6253]
[1721172767857,6.46248039,161.92,161.87,15.4444]
[1721172768077,6.46248039,161.92,161.8,30.902]
[1721172768078,6.1773,161.89,161.84,6.1785]
[1721172768380,15.4392,161.93,161.85,6.1785]
[1721172768575,6.177,161.89,161.84,21.626]
[1721172768779,15.4392,161.93,161.84,15.4471]
[1721172769075,6.1763,161.91,161.84,15.4471]
[1721172769303,20.0,161.9,161.84,15.4471]
[1721172769447,6.1759,161.92,161.87,6.1777]
[1721172769647,20.0,161.91,161.87,6.1777]
[1721172770075,6.176,161.92,161.87,6.1777]
[1721172770278,12.81829121,161.97,161.9,6.1763]
[1721172770576,24.9775,161.97,161.87,1.2351515]
[1721172770778,6.1756,161.93,161.88,6.1771]
[1721172770985,6.1759,161.92,161.88,6.1771]
[1721172771162,6.1759,161.92,161.87,16.6791515]
[1721172771163,15.4365,161.96,161.87,21.6217]
[1721172771367,15.4365,161.96,161.87,15.444]
[1721172771566,0.17,161.95,161.87,15.444]
[1721172771779,6.1755,161.93,161.88,6.177]
[1721172772291,6.1751,161.94,161.89,7.41212397]
[1721172772469,20.0,161.95,161.87,15.444]
[1721172772665,6.1763,161.91,161.87,15.444]
[1721172772862,6.1747,161.96,161.91,6.1761]
[1721172773168,6.3575,161.97,161.89,15.4417]
[1721172773375,0.17,161.96,161.89,15.4417]
[1721172773573,0.17,161.96,161.87,6.1777]
[1721172773790,6.1762,161.92,161.86,21.6233]
[1721172774080,6.176,161.92,161.87,7.41308574]
[1721172774261,6.1759,161.92,161.87,6.1777]
[1721172774461,6.1759,161.92,161.88,6.1773]
[1721172774679,6.1764,161.91,161.86,21.6231]
[1721172774977,6.1759,161.92,161.87,6.1774]
[1721172775183,6.1759,161.92,161.88,6.1773]
[1721172775376,6.1756,161.93,161.88,6.1773]
[1721172775572,6.1759,161.92,161.88,6.1773]
[1721172775776,6.1759,161.92,161.88,6.1772]
[1721172776189,15.7764,161.96,161.86,15.4452]
[1721172776366,6.1769,161.9,161.86,15.4452]
[1721172777273,6.1772,161.89,161.83,30.7543]
[1721172777463,15.6083,161.94,161.85,15.4457]
[1721172777669,6.1769,161.9,161.85,21.6239]
[1721172777870,6.1772,161.89,161.85,15.4457]
[1721172778183,6.1777,161.88,161.83,21.4856]
[1721172778587,6.177,161.89,161.84,6.1789]
[1721172778970,6.1775,161.88,161.83,21.4856]
[1721172779461,6.1775,161.88,161.83,6.1792]
[1721172779686,15.4401,161.92,161.83,6.1792]
[1721172779687,34.0101,161.92,161.83,6.1792]
[1721172779897,6.1775,161.88,161.83,6.1792]
[1721172780185,6.1778,161.87,161.83,6.1792]
[1721172780376,6.1783,161.86,161.82,15.4492]
[1721172780582,6.1769,161.9,161.85,6.1784]
[1721172780886,6.177,161.89,161.85,6.1784]
[1721172781296,18.57,161.94,161.86,6.178]
[1721172781588,18.57,161.94,161.85,1.23564259]
[1721172781589,6.1766,161.9,161.85,7.41404259]
[1721172781970,6.1759,161.92,161.87,6.1777]
[1721172782168,15.4344,161.98,161.88,15.4429]
[1721172782391,15.4344,161.98,161.84,30.8943]
[1721172782694,6.175,161.95,161.9,15.441]
[1721172782994,6.1748,161.95,161.91,6.1761]
[1721172783174,15.4344,161.98,161.89,15.4422]
[1721172783488,6.1752,161.94,161.89,21.6191]
[1721172783788,15.4344,161.98,161.89,21.6191]
[1721172783789,15.4344,161.98,161.9,1.23515546]
[1721172783977,15.4344,161.98,161.89,15.4422]
[1721172784163,6.1744,161.96,161.91,6.176]
[1721172784697,6.1739,161.98,161.93,6.1754]
[1721172784874,6.1733,161.99,161.94,7.40995386]
[1721172785788,6.1734,161.99,161.94,7.40994307]
[1721172785994,6.1729,162.0,161.95,6.1747]
[1721172786171,6.1729,162.0,161.94,1.23484307]
[1721172786372,6.1029,162.05,161.94,1.23484307]
[1721172786595,6.1719,162.03,161.98,6.1735]
[1721172786897,6.1721,162.02,161.97,15.4343]
[1721172787075,6.1721,162.02,161.94,15.4375]
[1721172787076,6.1723,162.02,161.94,15.4375]
[1721172787400,6.1724,162.01,161.94,15.4375]
[1721172787698,6.1721,162.02,161.96,15.435]
[1721172787902,6.1698,162.08,162.02,6.1718]
[1721172788199,6.1701,162.07,162.02,21.602]
[1721172788411,7.297,162.09,162.02,15.4301]
[1721172788412,0.8223,162.09,162.02,15.4301]
[1721172788776,0.8223,162.09,162.06,6.1705]
[1721172788972,0.8223,162.09,162.07,1.23390715]
[1721172789206,6.1701,162.07,162.01,15.4306]
[1721172789370,0.8223,162.09,162.01,15.4306]
[1721172789371,6.992,162.09,162.01,15.4306]
[1721172789576,0.8223,162.09,162.04,6.1712]
[1721172789809,0.8223,162.09,162.01,15.4306]
[1721172790179,0.8223,162.09,162.04,6.1709]
[1721172790378,6.9917,162.09,162.03,6.1716]
[1721172790601,6.9917,162.09,161.97,30.8683]
[1721172790602,0.8223,162.09,162.05,6.1707]
[1721172791101,0.8223,162.09,162.06,6.1705]
[1721172791300,0.8223,162.09,162.06,7.40443509]
[1721172791500,0.8223,162.09,162.08,6.1697]
[1721172791711,0.8223,162.09,162.08,1.23372616]
[1721172792200,0.8223,162.09,162.07,15.4252]
[1721172792393,0.8223,162.09,162.03,15.4291]
[1721172793003,0.8223,162.09,161.99,37.2301]
[1721172793186,0.8223,162.09,162.0,6.1727]
[1721172793187,6.171,162.05,162.0,6.1727]
[1721172793499,6.1704,162.07,162.02,6.1719]
[1721172793704,0.8223,162.09,162.02,15.43]
[1721172793892,0.8223,162.09,161.99,21.7979]
[1721172794202,6.1699,162.08,162.02,6.1719]
[1721172794597,6.1699,162.08,162.01,15.4311]
[1721172794598,0.8223,162.09,162.03,6.1716]
[1721172794804,6.17,162.08,162.03,6.1716]
[1721172794982,6.17,162.08,162.02,6.172]
[1721172795185,0.8223,162.09,162.04,15.4281]
[1721172795388,0.8223,162.09,162.05,7.40479016]
[1721172795708,0.8223,162.09,162.07,6.1701]
[1721172796005,0.8223,162.09,162.04,21.599]
[1721172796208,0.8223,162.09,161.99,21.7979]
[1721172796421,6.5672,162.08,162.0,1.23401226]
[1721172796716,6.5672,162.08,161.98,6.1735]
[1721172796717,6.1716,162.04,161.98,6.1735]
[1721172796887,6.5672,162.08,161.98,6.1735]
[1721172797092,20.0,162.07,161.97,15.434]
[1721172797312,6.1724,162.01,161.97,15.434]
[1721172797484,38.57,162.07,161.97,15.434]
[1721172797697,6.1728,162.0,161.95,6.1747]
[1721172798411,6.1732,161.99,161.94,21.6126]
[1721172798710,15.4292,162.03,161.91,15.4405]
[1721172798912,6.1732,161.99,161.94,6.175]
[1721172799216,6.1736,161.98,161.93,21.6134]
[1721172799430,33.9992,162.03,161.9,15.4413]
[1721172799707,6.1738,161.98,161.93,6.1755]
[1721172800007,6.1742,161.97,161.91,6.1759]
[1721172800191,6.1742,161.97,161.92,6.1758]
[1721172800715,6.1742,161.97,161.89,22.582]
[1721172800716,20.0,162.02,161.89,22.582]
[1721172800885,6.1728,162.0,161.95,15.4366]
[1721172801081,39.7072,162.08,161.93,30.8765]
[1721172801280,39.7072,162.08,161.97,15.4341]
[1721172801281,56.1853,162.08,161.97,15.4341]
[1721172801481,15.4261,162.07,161.93,30.8765]
[1721172801685,15.4261,162.07,161.94,15.4375]
[1721172801686,15.428,162.05,161.94,15.4375]
[1721172801902,6.1722,162.02,161.97,6.1736]
[1721172802285,18.57,162.07,161.97,6.1739]
[1721172802486,0.17,162.06,161.97,6.1739]
[1721172802693,20.0,162.06,161.99,15.433]
[1721172802910,6.1713,162.04,161.99,21.6061]
[1721172803083,6.171,162.05,162.0,6.1727]
[1721172803491,38.4697,162.08,161.96,15.4355]
[1721172803818,38.4697,162.08,161.98,21.6067]
[1721172804004,6.1729,162.0,161.92,30.8786]
[1721172804201,6.1729,162.0,161.95,15.4364]
[1721172804405,15.4269,162.06,161.95,15.4364]
[1721172804406,6.1733,161.99,161.95,15.4364]
[1721172804605,33.9969,162.06,161.95,15.4364]
[1721172804789,6.1721,162.02,161.98,6.1733]
[1721172804996,23.0453,162.08,161.99,1.23453435]
[1721172805195,6.1713,162.04,161.99,21.6055]
[1721172805421,6.1722,162.02,161.97,6.1739]
[1721172805623,29.2151,162.08,162.03,6.1713]
[1721172805823,6.1705,162.06,162.02,15.43]
[1721172806196,6.1709,162.05,162.0,6.1727]
[1721172806813,23.0453,162.08,161.99,15.4327]
[1721172807418,6.1721,162.02,161.97,6.1736]
[1721172807606,6.1716,162.04,161.96,15.4356]
[1721172807815,6.1718,162.03,161.97,1.23444053]
[1721172808122,53.9962,162.07,161.96,15.4356]
[1721172808325,53.9962,162.07,162.01,6.1723]
[1721172808326,6.1708,162.06,162.01,6.1723]
[1721172808623,26.1702,162.07,162.02,6.1717]
[1721172808813,26.1702,162.07,162.03,6.1716]
[1721172809008,20.0,162.07,162.01,15.4302]
[1721172809520,20.0,162.07,161.98,31.9789]
[1721172809696,6.1709,162.06,162.0,6.1727]
[1721172809895,20.0,162.07,162.0,15.4316]
[1721172810111,6.1716,162.04,162.0,15.4316]
[1721172810293,6.1717,162.03,161.98,6.1735]
[1721172810495,6.1713,162.04,161.99,6.1728]
[1721172810729,6.1713,162.04,161.97,15.4345]
[1721172810928,6.1713,162.04,161.99,6.1731]
[1721172811101,6.1721,162.02,161.97,21.6081]
[1721172811615,6.1721,162.02,161.98,6.1735]
[1721172811805,6.1721,162.02,161.97,21.6084]
[1721172812698,6.1721,162.02,161.98,6.1735]
[1721172812902,53.9962,162.07,161.97,15.4345]
[1721172813105,15.4279,162.05,161.94,21.6122]
[1721172813317,6.1728,162.0,161.95,6.1744]
[1721172813510,20.0,162.04,161.96,6.1743]
[1721172813717,20.0,162.04,161.94,15.4374]
[1721172813718,6.1729,162.0,161.95,6.1746]
[1721172813918,6.174,161.97,161.92,6.1755]
[1721172814131,6.2737,162.01,161.91,15.4404]
[1721172814434,6.1736,161.98,161.93,6.1752]
[1721172814617,6.174,161.97,161.93,6.1752]
[1721172814823,6.1735,161.99,161.94,6.175]
[1721172815217,6.2737,162.01,161.95,15.4361]
[1721172815425,6.1735,161.99,161.95,15.4361]
[1721172815633,6.2737,162.01,161.94,6.175]
[1721172815807,6.2737,162.01,161.95,6.1743]
[1721172815808,12.4463,162.01,161.95,6.1743]
[1721172816011,22.5011,162.03,161.98,6.1732]
[1721172816318,22.5011,162.03,161.93,30.8765]
[1721172816319,6.1713,162.04,161.99,6.1731]
[1721172816526,6.3007,162.05,162.0,6.1728]
[1721172816527,12.4716,162.05,162.0,6.1728]
[1721172817236,12.4716,162.05,162.01,1.23433168]
[1721172817932,6.1714,162.04,162.0,6.1728]
[1721172818136,6.1714,162.04,161.98,15.4334]
[1721172818314,6.1714,162.04,161.99,6.1731]
[1721172818518,6.1717,162.03,161.99,6.1731]
[1721172819315,6.1714,162.04,162.0,6.1727]
[1721172819541,12.4716,162.05,162.01,6.1724]
[1721172820135,12.4717,162.05,162.0,6.1728]
[1721172820951,6.1708,162.06,162.01,22.83762237]
[1721172821247,6.1714,162.04,161.99,6.1731]
[1721172821417,15.0968,162.08,161.99,6.1731]
[1721172821418,6.1717,162.03,161.99,6.1731]
[1721172821716,30.5217,162.08,162.0,6.1727]
[1721172821915,20.0,162.07,161.98,15.4335]
[1721172822133,6.1717,162.03,161.99,6.1731]
[1721172822344,6.1717,162.03,161.98,21.607]
[1721172822942,20.0,162.07,161.98,21.607]
[1721172823119,15.4271,162.06,161.95,15.4364]
[1721172823320,6.1729,162.0,161.95,15.4364]
[1721172823740,6.1729,162.0,161.95,21.6108]
[1721172823922,6.1724,162.02,161.97,6.1737]
[1721172824436,6.1725,162.01,161.97,6.1737]
[1721172824636,6.1731,162.0,161.95,15.4364]
[1721172825026,6.1724,162.01,161.96,6.174]
[1721172825231,6.1724,162.01,161.96,1.23462604]
[1721172825532,35.4258,162.07,161.97,6.1736]
[1721172825843,6.1723,162.02,161.97,6.1736]
[1721172826230,6.1723,162.02,161.98,6.1734]
[1721172826437,6.1716,162.04,161.97,15.4345]
[1721172826637,6.1717,162.03,161.98,6.1732]
[1721172826821,6.1713,162.04,161.97,15.4345]
[1721172827217,6.1717,162.03,161.98,6.1732]
[1721172828021,6.1717,162.03,161.99,7.40748425]
[1721172828420,6.1714,162.04,161.99,7.40748425]
[1721172828634,6.1723,162.02,161.97,15.4345]
[1721172828943,35.4258,162.07,161.99,15.4324]
[1721172828944,6.1708,162.06,161.99,15.4324]
[1721172829142,6.171,162.05,162.0,6.1727]
[1721172829943,6.171,162.05,161.99,15.4324]
[1721172829944,6.1714,162.04,161.99,21.6055]
[1721172830146,6.1718,162.03,161.99,21.6055]
[1721172830742,6.1713,162.04,162.0,6.1727]
[1721172831125,6.1713,162.04,161.99,21.6054]
[1721172831330,6.1717,162.03,161.99,21.6054]
[1721172831948,6.1713,162.04,162.0,6.1727]
[1721172832337,20.0,162.07,162.01,6.1721]
[1721172832844,20.0,162.07,162.0,6.1727]
[1721172833944,6.1706,162.06,162.02,6.172]
[1721172834146,6.1706,162.06,162.02,7.40618886]
[1721172834528,6.1706,162.06,162.02,6.172]
[1721172835149,6.1706,162.06,162.01,6.1723]
[1721172835330,6.171,162.05,162.01,6.1723]
[1721172835844,6.171,162.05,161.95,18.57]
[1721172835845,6.1736,161.98,161.92,16.4358]
[1721172836355,6.1736,161.98,161.94,6.1751]
[1721172836530,6.1742,161.97,161.92,38.0508]
[1721172836739,6.1742,161.97,161.92,21.615]
[1721172837148,6.1759,161.92,161.87,22.89312971]
[1721172837356,6.5203,162.0,161.87,6.45732971]
[1721172837357,6.177,161.89,161.87,6.45732971]
[1721172837540,6.1769,161.9,161.85,6.1785]
[1721172837925,6.1769,161.9,161.84,15.4465]
[1721172837926,6.1769,161.9,161.84,21.6253]
[1721172838120,6.177,161.89,161.84,21.6253]
[1721172838337,6.177,161.89,161.84,15.4465]
[1721172839130,6.1775,161.88,161.82,6.1796]
[1721172839333,6.1777,161.87,161.82,6.1796]
[1721172839646,6.1774,161.89,161.82,6.1796]
[1721172839858,6.1775,161.88,161.82,6.1796]
[1721172840338,6.1775,161.88,161.79,6.46103057]
[1721172840339,15.4326,161.88,161.79,6.46103057]
[1721172840540,26.1781,161.87,161.81,6.18]
[1721172840848,6.1797,161.82,161.76,6.1817]
[1721172841146,6.1797,161.82,161.76,6.1819]
[1721172841658,6.18,161.82,161.75,6.1823]
[1721172841826,6.6435,161.83,161.75,6.1823]
[1721172842226,6.6435,161.83,161.76,6.1819]
[1721172842441,6.6435,161.83,161.74,21.6389]
[1721172842726,6.6435,161.83,161.74,15.4566]
[1721172842927,6.1811,161.79,161.74,15.4566]
[1721172843650,6.6435,161.83,161.76,6.1819]
[1721172843864,6.6435,161.83,161.74,15.4566]
[1721172844151,6.1804,161.81,161.76,6.1819]
[1721172844744,6.1804,161.81,161.74,21.639]
[1721172844949,6.1804,161.8,161.74,21.639]
[1721172846448,6.1804,161.8,161.75,6.1823]
[1721172846832,6.1801,161.81,161.76,1.23616744]
[1721172847233,6.1804,161.8,161.75,6.1823]
[1721172847636,6.18,161.82,161.76,7.41807115]
[1721172847930,6.6435,161.83,161.74,15.4566]
[1721172848131,6.1815,161.78,161.72,6.1833]
[1721172848656,6.1816,161.77,161.72,6.1833]
[1721172850156,6.1838,161.72,161.67,12.65100869]
[1721172850332,6.1824,161.75,161.7,6.1842]
[1721172850531,16.635,161.8,161.66,28.57]
[1721172850732,20.0,161.79,161.67,1.23653921]
[1721172850954,82.8761,161.84,161.68,28.57]
[1721172850955,15.355,161.84,161.68,28.57]
[1721172851153,6.1813,161.78,161.74,15.4561]
[1721172851359,15.355,161.84,161.74,21.6386]
[1721172851561,6.1809,161.79,161.74,21.6388]
[1721172851752,6.1805,161.8,161.75,6.1823]
[1721172852255,6.1809,161.79,161.74,21.6388]
[1721172852440,22.0923,161.83,161.73,6.183]
[1721172852441,6.1816,161.78,161.73,6.183]
[1721172853049,22.0923,161.83,161.7,6.1842]
[1721172853050,6.1824,161.75,161.7,6.1842]
[1721172853250,89.1816,161.83,161.65,28.58126507]
[1721172853457,6.1831,161.73,161.68,6.185]
[1721172853757,12.7409,161.73,161.69,1.23662033]
[1721172853934,22.0124,161.77,161.61,37.4050242]
[1721172854134,20.17,161.76,161.64,15.4662]
[1721172854338,6.1835,161.72,161.67,6.1853]
[1721172854560,6.1835,161.72,161.66,21.6496]
[1721172854859,6.1836,161.72,161.66,21.6496]
[1721172855246,6.184,161.71,161.66,21.6496]
[1721172855456,15.4568,161.75,161.63,15.4672]
[1721172855645,20.34,161.74,161.64,6.1862]